[Event "Early-Titled-Tuesday-Blitz-January-16-2024"]
[Site "Chess.com"]
[Date "2024.01.16"]
[Round "8"]
[White "Yushko_Olga"]
[Black "FredddieCroderg"]
[Result "0-1"]
[WhiteElo "2120"]
[BlackElo "2343"]
[TimeControl "180+1"]
[EndTime "9:32:13 PST"]
[Termination "FredddieCroderg won on time"]

1. d4 {[%clk 0:02:59.4]} 1... d5 {[%clk 0:02:58]} 2. c4 {[%clk 0:02:59.4]} 2...
e6 {[%clk 0:02:58.3]} 3. cxd5 {[%clk 0:02:58]} 3... exd5 {[%clk 0:02:56.8]} 4.
Nc3 {[%clk 0:02:58.5]} 4... Nf6 {[%clk 0:02:56.7]} 5. Bg5 {[%clk 0:02:57.8]}
5... Be7 {[%clk 0:02:56.6]} 6. Qc2 {[%clk 0:02:57.4]} 6... O-O {[%clk
0:02:56.6]} 7. e3 {[%clk 0:02:57.7]} 7... Re8 {[%clk 0:02:54.9]} 8. Bd3 {[%clk
0:02:57.4]} 8... h6 {[%clk 0:02:54.9]} 9. Bh4 {[%clk 0:02:57.5]} 9... c5 {[%clk
0:02:55.1]} 10. Nge2 {[%clk 0:02:56.7]} 10... c4 {[%clk 0:02:54.4]} 11. Bf5
{[%clk 0:02:55.3]} 11... Nc6 {[%clk 0:02:54.9]} 12. a3 {[%clk 0:02:48.7]} 12...
Be6 {[%clk 0:02:54.1]} 13. O-O {[%clk 0:02:45]} 13... Rb8 {[%clk 0:02:45.4]} 14.
Nf4 {[%clk 0:02:39.3]} 14... Qd7 {[%clk 0:02:42.2]} 15. Bxe6 {[%clk 0:02:36.2]}
15... fxe6 {[%clk 0:02:40.9]} 16. Qg6 {[%clk 0:02:27.4]} 16... b5 {[%clk
0:02:38.9]} 17. Bg3 {[%clk 0:02:18.4]} 17... a5 {[%clk 0:02:33.7]} 18. Nh5
{[%clk 0:02:14.9]} 18... Nxh5 {[%clk 0:02:28.2]} 19. Bxb8 {[%clk 0:02:11.5]}
19... Rxb8 {[%clk 0:02:22.7]} 20. Qxh5 {[%clk 0:02:11.1]} 20... b4 {[%clk
0:02:20]} 21. axb4 {[%clk 0:02:10.5]} 21... axb4 {[%clk 0:02:19.8]} 22. Ne2
{[%clk 0:02:06.6]} 22... Bf6 {[%clk 0:02:18.4]} 23. Qg4 {[%clk 0:01:59.7]} 23...
b3 {[%clk 0:02:11.2]} 24. Nf4 {[%clk 0:01:58.3]} 24... Re8 {[%clk 0:02:10.5]}
25. Ra6 {[%clk 0:01:56.3]} 25... Bg5 {[%clk 0:01:57.2]} 26. h4 {[%clk 0:01:51]}
26... Bxf4 {[%clk 0:01:56.8]} 27. Qxf4 {[%clk 0:01:50.2]} 27... Nb4 {[%clk
0:01:54.7]} 28. Rfa1 {[%clk 0:01:39.9]} 28... Nxa6 {[%clk 0:01:51.1]} 29. Rxa6
{[%clk 0:01:37.9]} 29... Qb7 {[%clk 0:01:46.9]} 30. Ra1 {[%clk 0:01:14.1]} 30...
Ra8 {[%clk 0:01:42.8]} 31. Rxa8+ {[%clk 0:01:10.3]} 31... Qxa8 {[%clk
0:01:42.8]} 32. Qd6 {[%clk 0:01:10.3]} 32... c3 {[%clk 0:01:30.5]} 33. Qxe6+
{[%clk 0:01:09]} 33... Kh8 {[%clk 0:01:30.7]} 34. Qb6 {[%clk 0:00:40.1]} 34...
cxb2 {[%clk 0:01:22.2]} 35. Qxb3 {[%clk 0:00:38.7]} 35... Qa1+ {[%clk
0:01:21.9]} 36. Kh2 {[%clk 0:00:39.3]} 36... b1=Q {[%clk 0:01:21.3]} 37. Qxd5
{[%clk 0:00:38.7]} 37... Qaa2 {[%clk 0:01:14.8]} 38. Qd8+ {[%clk 0:00:27.1]}
38... Kh7 {[%clk 0:01:14.6]} 39. Qf8 {[%clk 0:00:26.5]} 39... Qbc2 {[%clk
0:01:09.6]} 40. Kg3 {[%clk 0:00:24.7]} 40... Qe6 {[%clk 0:01:06.7]} 41. h5
{[%clk 0:00:14.1]} 41... Qf6 {[%clk 0:01:04.1]} 42. Qxf6 {[%clk 0:00:11]} 42...
gxf6 {[%clk 0:01:03.3]} 43. f3 {[%clk 0:00:07.5]} 43... Kg7 {[%clk 0:01:01.9]}
44. e4 {[%clk 0:00:07.2]} 44... Kf7 {[%clk 0:01:01.4]} 0-1

[Event "Early-Titled-Tuesday-Blitz-January-16-2024"]
[Site "Chess.com"]
[Date "2024.01.16"]
[Round "8"]
[White "djano"]
[Black "Bkmzzzzz"]
[Result "1-0"]
[WhiteElo "2641"]
[BlackElo "2417"]
[TimeControl "180+1"]
[EndTime "9:32:14 PST"]
[Termination "djano won on time"]

1. e4 {[%clk 0:03:00.9]} 1... d6 {[%clk 0:02:57.5]} 2. Nc3 {[%clk 0:03:00.5]}
2... Nf6 {[%clk 0:02:57.8]} 3. f4 {[%clk 0:02:59.8]} 3... e5 {[%clk 0:02:51.1]}
4. Nf3 {[%clk 0:02:59.4]} 4... Nbd7 {[%clk 0:02:37.7]} 5. Bc4 {[%clk 0:02:58.4]}
5... Be7 {[%clk 0:02:37]} 6. O-O {[%clk 0:02:47.9]} 6... O-O {[%clk 0:02:36.8]}
7. d3 {[%clk 0:02:48.2]} 7... c6 {[%clk 0:02:36.5]} 8. Bb3 {[%clk 0:02:47.5]}
8... b5 {[%clk 0:02:36.1]} 9. Kh1 {[%clk 0:02:42.6]} 9... a5 {[%clk 0:02:23.8]}
10. a3 {[%clk 0:02:40.9]} 10... Bb7 {[%clk 0:02:23.6]} 11. Qe1 {[%clk
0:02:39.1]} 11... Qc7 {[%clk 0:02:09.8]} 12. fxe5 {[%clk 0:02:30.8]} 12... Nxe5
{[%clk 0:02:10.7]} 13. Qg3 {[%clk 0:02:25.9]} 13... Ng6 {[%clk 0:01:56.8]} 14.
h4 {[%clk 0:02:20.6]} 14... Bc8 {[%clk 0:01:32.7]} 15. Bg5 {[%clk 0:02:13.5]}
15... Nh5 {[%clk 0:01:29.8]} 16. Qh2 {[%clk 0:02:08.9]} 16... Be6 {[%clk
0:01:25.5]} 17. Bxe6 {[%clk 0:01:53.3]} 17... fxe6 {[%clk 0:01:26.4]} 18. Nd4
{[%clk 0:01:53.9]} 18... e5 {[%clk 0:00:54.5]} 19. Nf5 {[%clk 0:01:41.8]} 19...
Bf6 {[%clk 0:00:40.3]} 20. Ne2 {[%clk 0:01:34.3]} 20... Ne7 {[%clk 0:00:18.7]}
21. g4 {[%clk 0:01:21.7]} 21... Bxg5 {[%clk 0:00:14.9]} 22. hxg5 {[%clk
0:01:15.6]} 22... Nf4 {[%clk 0:00:12.4]} 23. Nxf4 {[%clk 0:01:15.7]} 23... exf4
{[%clk 0:00:13.3]} 24. Qxf4 {[%clk 0:01:15.8]} 24... Rad8 {[%clk 0:00:10.1]} 25.
Rf2 {[%clk 0:01:10.2]} 25... Ng6 {[%clk 0:00:10.2]} 26. Qg3 {[%clk 0:01:07.3]}
26... Qb7 {[%clk 0:00:04.7]} 27. Raf1 {[%clk 0:01:07.4]} 27... d5 {[%clk
0:00:05.4]} 28. e5 {[%clk 0:00:58.9]} 28... d4 {[%clk 0:00:05.8]} 29. Qg2 {[%clk
0:00:57.7]} 29... Qd7 {[%clk 0:00:05.2]} 30. Qe4 {[%clk 0:00:56.3]} 30... Qe6
{[%clk 0:00:05.4]} 31. Re1 {[%clk 0:00:47.8]} 31... c5 {[%clk 0:00:04.1]} 32. b4
{[%clk 0:00:42.3]} 32... axb4 {[%clk 0:00:04]} 33. axb4 {[%clk 0:00:43.2]} 33...
Rc8 {[%clk 0:00:01.6]} 34. bxc5 {[%clk 0:00:42.6]} 34... Rxc5 {[%clk 0:00:02.2]}
35. Nxd4 {[%clk 0:00:42.7]} 35... Qxe5 {[%clk 0:00:02.3]} 36. Rxf8+ {[%clk
0:00:34.6]} 36... Kxf8 {[%clk 0:00:02]} 37. Ne6+ {[%clk 0:00:34.6]} 1-0

[Event "Early-Titled-Tuesday-Blitz-January-16-2024"]
[Site "Chess.com"]
[Date "2024.01.16"]
[Round "8"]
[White "Talent-OF-Slovenia"]
[Black "AradNazari"]
[Result "1-0"]
[WhiteElo "2422"]
[BlackElo "2622"]
[TimeControl "180+1"]
[EndTime "9:32:16 PST"]
[Termination "Talent-OF-Slovenia won by checkmate"]

1. e4 {[%clk 0:03:00.9]} 1... g5 {[%clk 0:02:50.2]} 2. d4 {[%clk 0:02:59.6]}
2... e6 {[%clk 0:02:45]} 3. Nc3 {[%clk 0:02:58.9]} 3... Bg7 {[%clk 0:02:41.9]}
4. Be3 {[%clk 0:02:59.2]} 4... h6 {[%clk 0:02:41]} 5. Bd3 {[%clk 0:02:53.9]}
5... Nc6 {[%clk 0:02:33.6]} 6. Nge2 {[%clk 0:02:53.7]} 6... Nge7 {[%clk
0:02:29.9]} 7. O-O {[%clk 0:02:53.1]} 7... d5 {[%clk 0:02:26.7]} 8. e5 {[%clk
0:02:52.5]} 8... Nb4 {[%clk 0:02:19.9]} 9. f4 {[%clk 0:02:51.2]} 9... Nxd3
{[%clk 0:02:16.2]} 10. Qxd3 {[%clk 0:02:52.1]} 10... Nf5 {[%clk 0:02:13.9]} 11.
g4 {[%clk 0:02:46.9]} 11... Nxe3 {[%clk 0:02:10.3]} 12. Qxe3 {[%clk 0:02:45.1]}
12... Bd7 {[%clk 0:02:09.2]} 13. f5 {[%clk 0:02:39.7]} 13... h5 {[%clk
0:02:02.4]} 14. f6 {[%clk 0:02:36.7]} 14... Bf8 {[%clk 0:02:02.8]} 15. Qxg5
{[%clk 0:02:35.6]} 15... hxg4 {[%clk 0:02:03.4]} 16. Nf4 {[%clk 0:02:29]} 16...
c5 {[%clk 0:01:59.2]} 17. Rae1 {[%clk 0:02:14.8]} 17... Qb6 {[%clk 0:01:50.8]}
18. Ncxd5 {[%clk 0:01:53.2]} 18... exd5 {[%clk 0:01:42.4]} 19. e6 {[%clk
0:01:43.9]} 19... Bxe6 {[%clk 0:01:30.6]} 20. Nxe6 {[%clk 0:01:12.4]} 20... fxe6
{[%clk 0:01:29.2]} 21. Qxd5 {[%clk 0:01:11.8]} 21... Kf7 {[%clk 0:00:45.6]} 22.
Qd7+ {[%clk 0:01:03.6]} 22... Kg6 {[%clk 0:00:34]} 23. f7 {[%clk 0:00:17.5]}
23... Rd8 {[%clk 0:00:34.4]} 24. Rxe6+ {[%clk 0:00:17]} 24... Kh5 {[%clk
0:00:18.8]} 25. Re5+ {[%clk 0:00:15.5]} 25... Kh4 {[%clk 0:00:18.2]} 26. Qf5
{[%clk 0:00:13.4]} 26... g3 {[%clk 0:00:01.5]} 27. Qg5+ {[%clk 0:00:12.3]} 27...
Kh3 {[%clk 0:00:01.6]} 28. Qxg3# {[%clk 0:00:12.9]} 1-0

[Event "Early-Titled-Tuesday-Blitz-January-16-2024"]
[Site "Chess.com"]
[Date "2024.01.16"]
[Round "8"]
[White "NelsonLinda"]
[Black "Brahianzevich"]
[Result "0-1"]
[WhiteElo "2592"]
[BlackElo "2444"]
[TimeControl "180+1"]
[EndTime "9:32:16 PST"]
[Termination "Brahianzevich won on time"]

1. b3 {[%clk 0:01:41.4]} 1... d5 {[%clk 0:02:58.8]} 2. Bb2 {[%clk 0:01:39.7]}
2... e6 {[%clk 0:02:58.8]} 3. Nf3 {[%clk 0:01:38.4]} 3... Nf6 {[%clk 0:02:58.6]}
4. g3 {[%clk 0:01:38]} 4... Be7 {[%clk 0:02:56.4]} 5. Bg2 {[%clk 0:01:36.9]}
5... O-O {[%clk 0:02:57]} 6. O-O {[%clk 0:01:36.6]} 6... c5 {[%clk 0:02:56.7]}
7. d4 {[%clk 0:01:33.6]} 7... cxd4 {[%clk 0:02:26.7]} 8. Nxd4 {[%clk 0:01:29.8]}
8... Nc6 {[%clk 0:02:26.7]} 9. Nxc6 {[%clk 0:01:28.7]} 9... bxc6 {[%clk
0:02:26.6]} 10. c4 {[%clk 0:01:29.6]} 10... Ba6 {[%clk 0:02:08.6]} 11. Nd2
{[%clk 0:01:24.6]} 11... Qb6 {[%clk 0:02:02.9]} 12. Rc1 {[%clk 0:01:13.5]} 12...
Rfd8 {[%clk 0:02:01.3]} 13. Qc2 {[%clk 0:01:10.3]} 13... Rac8 {[%clk 0:01:54.8]}
14. Rfd1 {[%clk 0:01:08.5]} 14... h5 {[%clk 0:01:48.3]} 15. e3 {[%clk
0:01:04.8]} 15... h4 {[%clk 0:01:47.8]} 16. Nf3 {[%clk 0:00:46.2]} 16... hxg3
{[%clk 0:01:45.5]} 17. hxg3 {[%clk 0:00:46.3]} 17... Ne4 {[%clk 0:01:42.1]} 18.
Ne5 {[%clk 0:00:36.5]} 18... Nf6 {[%clk 0:01:05.4]} 19. Bf3 {[%clk 0:00:27.2]}
19... c5 {[%clk 0:01:01.2]} 20. cxd5 {[%clk 0:00:21.7]} 20... exd5 {[%clk
0:01:02.1]} 21. Kg2 {[%clk 0:00:21.1]} 21... Qe6 {[%clk 0:00:59.9]} 22. Rh1
{[%clk 0:00:20.1]} 22... d4 {[%clk 0:00:58.1]} 23. Ng4 {[%clk 0:00:09.2]} 23...
d3 {[%clk 0:00:53.8]} 24. Nxf6+ {[%clk 0:00:07.7]} 24... Bxf6 {[%clk 0:00:53.1]}
25. Qd2 {[%clk 0:00:08.4]} 25... c4 {[%clk 0:00:43.1]} 26. Bxf6 {[%clk
0:00:07.5]} 26... Qxf6 {[%clk 0:00:42.5]} 27. bxc4 {[%clk 0:00:07.5]} 27... Bxc4
{[%clk 0:00:42.7]} 28. Rh4 {[%clk 0:00:07.6]} 28... Bd5 {[%clk 0:00:27.8]} 29.
Bxd5 {[%clk 0:00:05.2]} 29... Rxc1 {[%clk 0:00:26.1]} 30. Qxd3 {[%clk
0:00:02.2]} 30... Rc5 {[%clk 0:00:23.9]} 31. Qh7+ {[%clk 0:00:01.7]} 31... Kf8
{[%clk 0:00:24.4]} 0-1

[Event "Early-Titled-Tuesday-Blitz-January-16-2024"]
[Site "Chess.com"]
[Date "2024.01.16"]
[Round "8"]
[White "brm72"]
[Black "LimeInTheCoconut"]
[Result "1-0"]
[WhiteElo "2698"]
[BlackElo "2545"]
[TimeControl "180+1"]
[EndTime "9:32:17 PST"]
[Termination "brm72 won on time"]

1. e4 {[%clk 0:03:00.9]} 1... c6 {[%clk 0:03:00]} 2. d4 {[%clk 0:03:00.9]} 2...
d5 {[%clk 0:03:00.6]} 3. e5 {[%clk 0:03:01.6]} 3... Bf5 {[%clk 0:03:00.1]} 4.
Nf3 {[%clk 0:03:01.8]} 4... e6 {[%clk 0:03:00.2]} 5. Be2 {[%clk 0:03:02.5]} 5...
Ne7 {[%clk 0:03:00.3]} 6. O-O {[%clk 0:03:03.2]} 6... Nd7 {[%clk 0:03:00.5]} 7.
Be3 {[%clk 0:03:03.7]} 7... Bg4 {[%clk 0:02:57.1]} 8. Nbd2 {[%clk 0:03:03.2]}
8... c5 {[%clk 0:02:53]} 9. c4 {[%clk 0:03:02.2]} 9... cxd4 {[%clk 0:02:43.2]}
10. Bxd4 {[%clk 0:02:39.2]} 10... dxc4 {[%clk 0:02:31.6]} 11. Nxc4 {[%clk
0:02:33.3]} 11... Nc6 {[%clk 0:02:30.4]} 12. Bc3 {[%clk 0:02:33.1]} 12... Nc5
{[%clk 0:02:11.7]} 13. Qc2 {[%clk 0:02:19.1]} 13... Bf5 {[%clk 0:02:09.2]} 14.
Qc1 {[%clk 0:02:17.2]} 14... Ne4 {[%clk 0:01:49.9]} 15. Rd1 {[%clk 0:02:12.5]}
15... Qc7 {[%clk 0:01:38.9]} 16. Qf4 {[%clk 0:01:44.7]} 16... Nxc3 {[%clk
0:01:34.4]} 17. bxc3 {[%clk 0:01:45.6]} 17... Be7 {[%clk 0:01:03.9]} 18. Nd6+
{[%clk 0:01:45.4]} 18... Bxd6 {[%clk 0:01:00.6]} 19. exd6 {[%clk 0:01:46.3]}
19... Qd7 {[%clk 0:00:59]} 20. c4 {[%clk 0:01:44]} 20... O-O {[%clk 0:00:54.7]}
21. c5 {[%clk 0:01:41.4]} 21... Rfd8 {[%clk 0:00:50.9]} 22. Bb5 {[%clk
0:01:40.2]} 22... f6 {[%clk 0:00:34.4]} 23. Qa4 {[%clk 0:01:31.4]} 23... e5
{[%clk 0:00:29.6]} 24. h3 {[%clk 0:01:24.4]} 24... Rdc8 {[%clk 0:00:24.9]} 25.
Rac1 {[%clk 0:01:23.5]} 25... a6 {[%clk 0:00:20.1]} 26. Bc4+ {[%clk 0:01:23]}
26... Be6 {[%clk 0:00:17.9]} 27. Qb3 {[%clk 0:01:23]} 27... Bxc4 {[%clk
0:00:16.4]} 28. Qxc4+ {[%clk 0:01:23.9]} 28... Qf7 {[%clk 0:00:15.1]} 29. Qa4
{[%clk 0:01:22]} 29... Rd8 {[%clk 0:00:14.1]} 30. Rb1 {[%clk 0:01:16.7]} 30...
Rd7 {[%clk 0:00:13.2]} 31. Rb6 {[%clk 0:01:15.9]} 31... Rc8 {[%clk 0:00:10.1]}
32. Rdb1 {[%clk 0:01:14.6]} 32... Nd8 {[%clk 0:00:09]} 33. Rc1 {[%clk
0:01:05.8]} 33... Rc6 {[%clk 0:00:04]} 34. Rbb1 {[%clk 0:00:54.1]} 34... h6
{[%clk 0:00:03]} 35. Nh4 {[%clk 0:00:52.7]} 35... Qe6 {[%clk 0:00:02.2]} 36. Qe4
{[%clk 0:00:46.5]} 36... Nf7 {[%clk 0:00:01.5]} 37. Nf5 {[%clk 0:00:44]} 37...
Ng5 {[%clk 0:00:01.6]} 38. Qc2 {[%clk 0:00:35]} 1-0

[Event "Early-Titled-Tuesday-Blitz-January-16-2024"]
[Site "Chess.com"]
[Date "2024.01.16"]
[Round "8"]
[White "Juicy_Fork"]
[Black "TheNextLevelFan"]
[Result "0-1"]
[WhiteElo "2418"]
[BlackElo "2596"]
[TimeControl "180+1"]
[EndTime "9:32:18 PST"]
[Termination "TheNextLevelFan won by resignation"]

1. e4 {[%clk 0:02:56.7]} 1... c6 {[%clk 0:02:56.1]} 2. d4 {[%clk 0:02:56.4]}
2... d5 {[%clk 0:02:56.8]} 3. f3 {[%clk 0:02:54.8]} 3... dxe4 {[%clk 0:02:52.9]}
4. fxe4 {[%clk 0:02:55.7]} 4... g6 {[%clk 0:02:52.4]} 5. Nf3 {[%clk 0:02:54.7]}
5... Bg7 {[%clk 0:02:51.4]} 6. Bc4 {[%clk 0:02:53.2]} 6... Nf6 {[%clk
0:02:49.5]} 7. O-O {[%clk 0:02:49.9]} 7... O-O {[%clk 0:02:46.6]} 8. Qe2 {[%clk
0:02:44.2]} 8... Bg4 {[%clk 0:02:35.7]} 9. c3 {[%clk 0:02:42.1]} 9... e5 {[%clk
0:02:30.5]} 10. dxe5 {[%clk 0:02:26.6]} 10... Nfd7 {[%clk 0:02:31]} 11. e6
{[%clk 0:02:23.4]} 11... Bxe6 {[%clk 0:02:29.7]} 12. Bxe6 {[%clk 0:02:22.6]}
12... fxe6 {[%clk 0:02:30.1]} 13. Be3 {[%clk 0:02:18.7]} 13... Na6 {[%clk
0:02:25.9]} 14. Nbd2 {[%clk 0:02:14.3]} 14... Qa5 {[%clk 0:02:04.9]} 15. Nc4
{[%clk 0:01:55.8]} 15... Qh5 {[%clk 0:02:04.4]} 16. Rad1 {[%clk 0:01:48.7]}
16... Ne5 {[%clk 0:01:57.6]} 17. Ncxe5 {[%clk 0:01:40.3]} 17... Bxe5 {[%clk
0:01:56.9]} 18. h3 {[%clk 0:01:35.1]} 18... Bf4 {[%clk 0:01:42.8]} 19. Bd4
{[%clk 0:01:00.7]} 19... Nc7 {[%clk 0:01:25.1]} 20. Qc4 {[%clk 0:00:42.8]} 20...
Qb5 {[%clk 0:01:15.7]} 21. Qxb5 {[%clk 0:00:31.4]} 21... Nxb5 {[%clk 0:01:16.6]}
22. Bc5 {[%clk 0:00:30.6]} 22... Rf7 {[%clk 0:01:12.5]} 23. a4 {[%clk
0:00:29.9]} 23... Nc7 {[%clk 0:01:10.6]} 24. Bd6 {[%clk 0:00:29.9]} 24... Bxd6
{[%clk 0:00:56.9]} 25. Rxd6 {[%clk 0:00:30.8]} 25... Re8 {[%clk 0:00:33.4]} 26.
Rfd1 {[%clk 0:00:27.4]} 26... a5 {[%clk 0:00:31.4]} 27. Ng5 {[%clk 0:00:22.9]}
27... Rfe7 {[%clk 0:00:28.1]} 28. Rd7 {[%clk 0:00:23.1]} 28... Na6 {[%clk
0:00:25.2]} 29. e5 {[%clk 0:00:16.2]} 29... Nc5 {[%clk 0:00:24.3]} 30. b4 {[%clk
0:00:15.9]} 30... Nxd7 {[%clk 0:00:23.8]} 31. Ne4 {[%clk 0:00:12.3]} 31... axb4
{[%clk 0:00:19.8]} 32. cxb4 {[%clk 0:00:10.8]} 32... Nxe5 {[%clk 0:00:19.5]} 33.
Nf6+ {[%clk 0:00:09]} 33... Kg7 {[%clk 0:00:20]} 34. Nxe8+ {[%clk 0:00:08.7]}
34... Rxe8 {[%clk 0:00:20.9]} 0-1

[Event "Early-Titled-Tuesday-Blitz-January-16-2024"]
[Site "Chess.com"]
[Date "2024.01.16"]
[Round "8"]
[White "CristianS27"]
[Black "lucliasco"]
[Result "1-0"]
[WhiteElo "2622"]
[BlackElo "2885"]
[TimeControl "180+1"]
[EndTime "9:32:19 PST"]
[Termination "CristianS27 won by resignation"]

1. e4 {[%clk 0:02:55.7]} 1... c6 {[%clk 0:02:55]} 2. d4 {[%clk 0:02:45.7]} 2...
d5 {[%clk 0:02:55.3]} 3. exd5 {[%clk 0:02:42.3]} 3... Nf6 {[%clk 0:02:55.5]} 4.
c4 {[%clk 0:02:43.2]} 4... cxd5 {[%clk 0:02:55.2]} 5. Nc3 {[%clk 0:02:43.3]}
5... g6 {[%clk 0:02:54.9]} 6. Qb3 {[%clk 0:02:42.8]} 6... Bg7 {[%clk 0:02:51.3]}
7. cxd5 {[%clk 0:02:42.6]} 7... O-O {[%clk 0:02:50.7]} 8. Be2 {[%clk 0:02:43.3]}
8... Nbd7 {[%clk 0:02:39.3]} 9. Bf3 {[%clk 0:02:43.3]} 9... Nb6 {[%clk
0:02:39.4]} 10. Nge2 {[%clk 0:02:43.1]} 10... Bf5 {[%clk 0:02:39.5]} 11. a4
{[%clk 0:02:41.7]} 11... Bd3 {[%clk 0:02:31.6]} 12. a5 {[%clk 0:02:41.3]} 12...
Nc4 {[%clk 0:02:30.5]} 13. Qxb7 {[%clk 0:02:38.1]} 13... Rb8 {[%clk 0:02:22.3]}
14. Qxa7 {[%clk 0:02:37.5]} 14... Nd7 {[%clk 0:01:58.5]} 15. d6 {[%clk
0:02:08.8]} 15... exd6 {[%clk 0:01:47.6]} 16. O-O {[%clk 0:02:08.3]} 16... Nxb2
{[%clk 0:01:44.7]} 17. a6 {[%clk 0:01:51.2]} 17... Re8 {[%clk 0:01:42.6]} 18.
Bc6 {[%clk 0:01:35.1]} 18... Re7 {[%clk 0:01:31.1]} 19. Bg5 {[%clk 0:01:23.5]}
19... f6 {[%clk 0:01:30]} 20. Be3 {[%clk 0:01:20]} 20... Ne5 {[%clk 0:01:15.8]}
21. Qxe7 {[%clk 0:01:06.4]} 21... Qxe7 {[%clk 0:01:15.5]} 22. dxe5 {[%clk
0:01:06]} 22... Bxa6 {[%clk 0:01:08.5]} 23. exd6 {[%clk 0:00:56.8]} 23... Qxd6
{[%clk 0:00:58.5]} 24. Rxa6 {[%clk 0:00:57]} 24... Qd3 {[%clk 0:00:51.8]} 25.
Ra7 {[%clk 0:00:46.9]} 25... h6 {[%clk 0:00:38.3]} 26. Bd5+ {[%clk 0:00:46.3]}
26... Kh8 {[%clk 0:00:38]} 27. Be4 {[%clk 0:00:46.1]} 27... Qd8 {[%clk
0:00:30.7]} 28. Bxg6 {[%clk 0:00:44]} 28... Ra8 {[%clk 0:00:31.4]} 29. Rfa1
{[%clk 0:00:39.5]} 29... Rb8 {[%clk 0:00:24.7]} 30. h4 {[%clk 0:00:36]} 30...
Qf8 {[%clk 0:00:19.7]} 31. h5 {[%clk 0:00:35.5]} 31... Nc4 {[%clk 0:00:19.6]}
32. Rf7 {[%clk 0:00:34.4]} 32... Qg8 {[%clk 0:00:20]} 33. Raa7 {[%clk
0:00:19.6]} 33... Nxe3 {[%clk 0:00:17.6]} 34. fxe3 {[%clk 0:00:19.7]} 34... Rd8
{[%clk 0:00:15.6]} 35. Nd4 {[%clk 0:00:19.3]} 1-0

[Event "Early-Titled-Tuesday-Blitz-January-16-2024"]
[Site "Chess.com"]
[Date "2024.01.16"]
[Round "8"]
[White "doctorcristian"]
[Black "NoHeThTo"]
[Result "0-1"]
[WhiteElo "2554"]
[BlackElo "2712"]
[TimeControl "180+1"]
[EndTime "9:32:20 PST"]
[Termination "NoHeThTo won by resignation"]

1. d4 {[%clk 0:02:32.3]} 1... Nf6 {[%clk 0:02:57.8]} 2. Nc3 {[%clk 0:02:29.2]}
2... g6 {[%clk 0:02:55.7]} 3. e4 {[%clk 0:02:28.7]} 3... d6 {[%clk 0:02:56]} 4.
Bg5 {[%clk 0:02:28.6]} 4... Bg7 {[%clk 0:02:53.3]} 5. Qe2 {[%clk 0:02:28.4]}
5... Nc6 {[%clk 0:02:44]} 6. O-O-O {[%clk 0:02:27.7]} 6... h6 {[%clk 0:02:41.3]}
7. Bh4 {[%clk 0:02:27.2]} 7... g5 {[%clk 0:02:41.3]} 8. Bg3 {[%clk 0:02:27.2]}
8... Bg4 {[%clk 0:02:37]} 9. f3 {[%clk 0:02:26.1]} 9... Bh5 {[%clk 0:02:37.3]}
10. Bf2 {[%clk 0:02:23.5]} 10... Bg6 {[%clk 0:02:33]} 11. Qd2 {[%clk 0:02:10.4]}
11... Nd7 {[%clk 0:02:31.1]} 12. h4 {[%clk 0:02:06.6]} 12... e6 {[%clk 0:02:22]}
13. hxg5 {[%clk 0:02:05.5]} 13... hxg5 {[%clk 0:02:22.9]} 14. Rxh8+ {[%clk
0:02:05.3]} 14... Bxh8 {[%clk 0:02:23.8]} 15. Nh3 {[%clk 0:02:03.7]} 15... Bf6
{[%clk 0:02:19.2]} 16. Be3 {[%clk 0:02:03.6]} 16... g4 {[%clk 0:02:07.8]} 17.
Nf4 {[%clk 0:02:02.2]} 17... Nf8 {[%clk 0:02:02.6]} 18. Bb5 {[%clk 0:01:58.9]}
18... a6 {[%clk 0:02:00.9]} 19. Bxc6+ {[%clk 0:01:51.9]} 19... bxc6 {[%clk
0:02:00.4]} 20. Nce2 {[%clk 0:01:39]} 20... gxf3 {[%clk 0:01:56.8]} 21. gxf3
{[%clk 0:01:38.8]} 21... Qb8 {[%clk 0:01:54.4]} 22. c3 {[%clk 0:01:34]} 22...
Qb5 {[%clk 0:01:53.3]} 23. Nxg6 {[%clk 0:01:22.8]} 23... Nxg6 {[%clk 0:01:52.7]}
24. Nf4 {[%clk 0:01:23.2]} 24... Nxf4 {[%clk 0:01:52.2]} 25. Bxf4 {[%clk
0:01:23.2]} 25... a5 {[%clk 0:01:46.7]} 26. e5 {[%clk 0:01:13]} 26... Be7 {[%clk
0:01:46.1]} 27. Qh2 {[%clk 0:01:07.3]} 27... Kd7 {[%clk 0:01:45.7]} 28. Qh7
{[%clk 0:01:04.6]} 28... Qd5 {[%clk 0:01:44.5]} 29. exd6 {[%clk 0:00:56.5]}
29... cxd6 {[%clk 0:01:44]} 30. Bd2 {[%clk 0:00:44.8]} 30... Qxf3 {[%clk
0:01:33.2]} 31. Rg1 {[%clk 0:00:43.4]} 31... a4 {[%clk 0:01:29.8]} 32. Rg7
{[%clk 0:00:41.6]} 32... Rf8 {[%clk 0:01:19.3]} 33. a3 {[%clk 0:00:40.1]} 33...
d5 {[%clk 0:01:18.4]} 34. Qc2 {[%clk 0:00:38.1]} 34... Qh1+ {[%clk 0:01:16.7]}
35. Qd1 {[%clk 0:00:37.5]} 35... Qxd1+ {[%clk 0:01:16.7]} 36. Kxd1 {[%clk
0:00:37.7]} 36... Bf6 {[%clk 0:01:14.6]} 37. Rh7 {[%clk 0:00:37.4]} 37... Ke7
{[%clk 0:01:14.8]} 38. c4 {[%clk 0:00:37]} 38... Rh8 {[%clk 0:01:11.1]} 39. Bb4+
{[%clk 0:00:36.1]} 39... Ke8 {[%clk 0:01:11]} 40. Rxh8+ {[%clk 0:00:34.4]} 40...
Bxh8 {[%clk 0:01:11.9]} 41. cxd5 {[%clk 0:00:34.1]} 41... cxd5 {[%clk
0:01:11.1]} 42. Bc5 {[%clk 0:00:34.6]} 42... Kd7 {[%clk 0:01:11.3]} 43. Kc2
{[%clk 0:00:35.2]} 43... Kc6 {[%clk 0:01:11.6]} 44. b3 {[%clk 0:00:35.7]} 44...
axb3+ {[%clk 0:01:11.4]} 45. Kxb3 {[%clk 0:00:36.3]} 45... e5 {[%clk 0:01:11.9]}
46. a4 {[%clk 0:00:36]} 46... e4 {[%clk 0:01:11.8]} 47. Kc3 {[%clk 0:00:34.7]}
47... f5 {[%clk 0:01:11]} 48. Be7 {[%clk 0:00:28.3]} 48... f4 {[%clk 0:01:06.3]}
49. Bg5 {[%clk 0:00:28.4]} 49... f3 {[%clk 0:01:05.9]} 50. Be3 {[%clk
0:00:29.3]} 50... Bf6 {[%clk 0:01:05.2]} 51. Kb4 {[%clk 0:00:26.5]} 51... Be7+
{[%clk 0:01:04.6]} 52. Kc3 {[%clk 0:00:26.7]} 52... Bh4 {[%clk 0:01:02.9]} 53.
Kd2 {[%clk 0:00:26.8]} 53... Kb6 {[%clk 0:01:00.4]} 54. Bf4 {[%clk 0:00:20.6]}
54... Bf2 {[%clk 0:00:57.3]} 55. Bd6 {[%clk 0:00:18.8]} 55... Bxd4 {[%clk
0:00:56.4]} 56. Be5 {[%clk 0:00:18.5]} 56... Bxe5 {[%clk 0:00:56.3]} 0-1